bitfinex-derivatives/quotes_BTCF0:USTF0_20210409
["timestamp","ask_amount","ask_price","bid_price","bid_amount"]
[1617937494483,0.46983648,57934.0,57933.0,1.12679197]
[1617937494984,0.46983648,57934.0,57933.0,1.18841221]
[1617937495383,0.46983648,57934.0,57933.0,1.12679197]
[1617937495683,0.46983648,57934.0,57933.0,1.18841254]
[1617937496186,0.46983648,57934.0,57933.0,1.12679197]
[1617937506496,0.46983648,57934.0,57933.0,4.46549197]
[1617937507399,0.10725655,57934.0,57933.0,4.6195389]
[1617937509700,0.10725655,57934.0,57933.0,5.13229102]
[1617937512302,0.36253647,57939.0,57933.0,5.13229102]
[1617937512803,0.36260915,57940.0,57938.0,1.12799646]
[1617937513002,0.36260915,57940.0,57938.0,1.26575646]
[1617937513203,0.46991852,57941.0,57939.0,3.2616]
[1617937513704,0.46991852,57941.0,57940.0,1.28201335]
[1617937514204,0.10725655,57941.0,57940.0,1.28201335]
[1617937516807,0.10725655,57941.0,57940.0,1.79503683]
[1617937517408,0.47017203,57941.0,57940.0,1.79503683]
[1617937518108,0.47017203,57941.0,57940.0,5.45503683]
[1617937518309,0.47017203,57941.0,57940.0,5.30100473]
[1617937518810,0.10725655,57941.0,57940.0,4.94200853]
[1617937519215,0.10725655,57941.0,57940.0,1.28200853]
[1617937520013,0.10725655,57941.0,57940.0,1.12798125]
[1617937525917,0.10725655,57941.0,57940.0,1.63996073]
[1617937529723,0.10725655,57941.0,57940.0,1.12798125]
[1617937530523,0.36209939,57951.0,57940.0,1.12798125]
[1617937530725,0.36209939,57951.0,57950.0,3.4062]
[1617937530924,0.36209939,57951.0,57950.0,3.52833]
[1617937531125,0.46935594,57951.0,57950.0,3.52833]
[1617937531326,0.10725655,57951.0,57950.0,4.20351748]
[1617937531726,0.55526099,57951.0,57950.0,4.2651201]
[1617937533826,0.19315158,57951.0,57950.0,4.2651201]
[1617937534629,0.10725655,57951.0,57950.0,4.2651201]
[1617937535328,0.10725655,57951.0,57950.0,0.8589201]
[1617937536432,0.10725655,57951.0,57950.0,0.7367901]
[1617937537038,0.46940878,57951.0,57950.0,0.67518748]
[1617937537234,0.46940878,57951.0,57950.0,0.7367889]
[1617937537735,0.10725655,57951.0,57950.0,0.67518748]
[1617937538232,0.10725655,57951.0,57950.0,3.90058748]
[1617937538932,0.10725655,57951.0,57950.0,3.96218866]
[1617937539736,0.10725655,57951.0,57950.0,0.73678866]
[1617937540333,0.10725655,57951.0,57950.0,0.67518748]
[1617937542237,0.10725655,57951.0,57950.0,0.3069034]
[1617937542535,0.46925697,57951.0,57950.0,0.36850534]
[1617937542934,0.46925697,57951.0,57950.0,0.3069034]
[1617937543435,3.98255697,57951.0,57950.0,0.3069034]
[1617937543937,3.98255697,57951.0,57948.0,0.30681014]
[1617937544156,0.2,57950.0,57948.0,0.30681014]
[1617937544365,0.2,57950.0,57927.0,0.06160256]
[1617937544366,1.36169092,57949.0,57947.0,0.3068141]
[1617937544543,0.2,57948.0,57947.0,0.3068141]
[1617937544741,3.47645259,57948.0,57943.0,0.36818879]
[1617937544936,4.47645259,57948.0,57943.0,0.36818879]
[1617937545168,0.10725655,57944.0,57943.0,0.36818879]
[1617937546438,0.10725655,57944.0,57943.0,0.81817665]
[1617937550441,0.10725655,57944.0,57943.0,4.06277665]
[1617937551242,0.10725655,57944.0,57943.0,4.21677366]
[1617937551443,0.10725655,57944.0,57943.0,4.33485366]
[1617937551743,0.10725655,57944.0,57943.0,4.84627361]
[1617937552242,0.10725655,57944.0,57943.0,1.60167361]
[1617937552842,0.10725655,57944.0,57943.0,1.5092754]
[1617937553645,0.10725655,57944.0,57943.0,4.1595754]
[1617937554046,0.10725655,57944.0,57943.0,4.25197305]
[1617937554948,0.10725655,57944.0,57943.0,5.25197305]
[1617937555546,0.36225271,57956.0,57943.0,5.25197305]
[1617937555752,0.36225271,57956.0,57943.0,4.25197305]
[1617937555946,0.36260291,57961.0,57944.0,1.0]
[1617937556448,0.36260291,57961.0,57959.0,0.3682065]
[1617937556848,0.36260291,57961.0,57960.0,0.36820787]
[1617937557348,0.46985946,57961.0,57959.0,0.36820814]
[1617937557551,0.46985946,57961.0,57960.0,3.011]
[1617937558151,0.46985946,57961.0,57960.0,3.44079094]
[1617937558651,0.10725655,57961.0,57960.0,3.44079094]
[1617937560350,0.46994712,57961.0,57960.0,3.44079094]
[1617937560551,0.46994712,57961.0,57960.0,3.07259412]
[1617937560952,0.46994712,57961.0,57960.0,3.441447]
[1617937563555,0.46994712,57961.0,57960.0,0.430447]
[1617937564255,0.46994712,57961.0,57960.0,0.36885288]
[1617937564555,0.46994712,57961.0,57960.0,0.43044572]
[1617937564954,0.46994712,57961.0,57960.0,0.36885288]
[1617937573066,0.46994712,57961.0,57960.0,3.88265288]
[1617937573565,0.46994712,57961.0,57960.0,3.9442447]
[1617937574365,0.46994712,57961.0,57960.0,4.25127367]
[1617937574567,0.46994712,57961.0,57960.0,0.73747367]
[1617937575366,0.46994712,57961.0,57960.0,0.67588185]
[1617937575767,0.10725655,57961.0,57960.0,0.67588185]
[1617937577568,0.47033709,57961.0,57960.0,0.67588185]
[1617937577867,0.47033709,57961.0,57960.0,0.73747246]
[1617937578077,3.08643709,57961.0,57960.0,0.73747246]
[1617937578267,4.08643709,57961.0,57960.0,0.67588185]
[1617937578976,4.28643709,57961.0,57960.0,0.67588185]
[1617937579368,4.73017886,57961.0,57960.0,0.30702897]
[1617937580369,6.23017886,57961.0,57960.0,0.30702897]
[1617937580571,6.23017886,57961.0,57959.0,0.30719408]
[1617937580972,1.14693798,57960.0,57957.0,0.30719732]
[1617937581171,1.7,57959.0,57957.0,0.30719732]
[1617937581471,1.14693798,57960.0,57956.0,0.30719922]
[1617937581472,1.5,57957.0,57956.0,0.30719922]
[1617937581670,1.7,57957.0,57956.0,0.30719922]
[1617937581871,2.84683006,57957.0,57956.0,0.30719922]
[1617937582772,3.84683006,57957.0,57956.0,0.30719922]
[1617937582976,2.34683006,57957.0,57956.0,0.30719922]
[1617937583470,1.34683006,57957.0,57956.0,0.30719922]
[1617937583702,2.34683006,57957.0,57956.0,0.30719922]
[1617937583920,2.34683006,57957.0,57954.0,0.30720021]
[1617937583921,2.09924809,57957.0,57954.0,0.30720021]
[1617937584286,0.80687954,57955.0,57954.0,0.30720021]
[1617937584479,1.00687954,57955.0,57954.0,0.30720021]
[1617937584672,2.50687954,57955.0,57954.0,0.30720021]
[1617937584873,2.50687954,57955.0,57953.0,0.30723072]
[1617937585072,0.0523,57954.0,57953.0,0.30723072]
[1617937585471,0.15955655,57954.0,57953.0,0.30723072]
[1617937585674,2.8881464,57954.0,57952.0,0.30723104]
[1617937585873,3.8881464,57954.0,57952.0,0.30723104]
[1617937586373,2.72860143,57953.0,57952.0,0.30723104]
[1617937586774,2.72860143,57953.0,57951.0,0.30723386]
[1617937586973,1.22860143,57953.0,57951.0,0.30723386]
[1617937587475,1.0,57952.0,57951.0,0.30723386]
[1617937587678,1.8065134,57952.0,57951.0,0.30723386]
[1617937588079,1.94845996,57952.0,57951.0,0.30723386]
[1617937588475,1.94845996,57952.0,57951.0,0.67591154]
[1617937588674,5.56585996,57952.0,57951.0,0.67591154]
[1617937588975,5.12228767,57952.0,57951.0,0.67591154]
[1617937589577,5.56608667,57952.0,57951.0,0.67591154]
[1617937589977,5.56608667,57952.0,57951.0,0.30723386]
[1617937590377,7.11838667,57952.0,57951.0,0.30723386]
[1617937590881,7.11838667,57952.0,57950.0,0.67598221]
[1617937591079,7.11838667,57952.0,57950.0,0.30726589]
[1617937591479,1.2285156,57951.0,57950.0,0.30726589]
[1617937592683,2.2285156,57951.0,57950.0,0.30726589]
[1617937594883,3.7285156,57951.0,57950.0,0.30726589]
[1617937595085,3.7285156,57951.0,57948.0,0.30708606]
[1617937595486,0.80604411,57949.0,57947.0,0.30708768]
[1617937595686,1.5,57948.0,57947.0,0.30708768]
[1617937595900,1.7,57948.0,57947.0,0.30708768]
[1617937596086,2.50607634,57948.0,57947.0,0.30708768]
[1617937596519,2.50607634,57948.0,57944.0,0.30710624]
[1617937596520,3.92771733,57948.0,57944.0,0.30710624]
[1617937596709,3.64790609,57948.0,57944.0,0.30710624]
[1617937597290,3.64790609,57948.0,57931.0,0.51184373]
[1617937597291,0.42154746,57947.0,57946.0,2.9765]
[1617937597512,2.22880401,57947.0,57943.0,0.30711317]
[1617937597695,2.22880401,57947.0,57902.0,0.10725655]
[1617937597696,2.22880401,57947.0,57942.0,0.30711253]
[1617937597897,1.0,57944.0,57942.0,0.30711253]
[1617937598097,2.80779078,57943.0,57933.0,0.36857197]
[1617937598340,3.2869,57940.0,57933.0,0.36857197]
[1617937598493,1.36215104,57934.0,57933.0,0.36857197]
[1617937598891,1.52069489,57934.0,57933.0,0.36857197]
[1617937599496,1.62795144,57934.0,57933.0,0.36857197]
[1617937599894,1.62795144,57934.0,57932.0,0.36857483]
[1617937600198,0.52249788,57933.0,57932.0,0.36857483]
[1617937601493,1.52249788,57933.0,57932.0,0.36857483]
[1617937603717,1.96470258,57933.0,57932.0,0.36857483]
[1617937603901,1.96470258,57933.0,57911.0,0.06161442]
[1617937603902,1.96470258,57933.0,57929.0,0.36847478]
[1617937604103,3.46470258,57933.0,57929.0,0.36847478]
[1617937604602,0.36186776,57930.0,57929.0,0.36847478]
[1617937604802,0.48973776,57930.0,57929.0,0.36847478]
[1617937605002,0.48973776,57930.0,57928.0,0.36848216]
[1617937605301,1.98973776,57930.0,57928.0,0.36848216]
[1617937605603,1.62787,57930.0,57923.0,0.36752029]
[1617937605804,2.7981,57924.0,57923.0,0.36752029]
[1617937606003,3.7981,57924.0,57923.0,0.36752029]
[1617937606515,3.7981,57924.0,57922.0,0.36752003]
[1617937606716,3.7981,57924.0,57923.0,0.06161576]
[1617937607123,3.7981,57924.0,57923.0,0.36751695]
[1617937607124,2.7981,57924.0,57923.0,0.36751695]
[1617937607306,3.7981,57924.0,57923.0,0.36751695]
[1617937607507,3.90535655,57924.0,57923.0,0.36751695]
[1617937607907,1.10725655,57924.0,57923.0,0.36751695]
[1617937608509,0.10725655,57924.0,57923.0,0.36751695]
[1617937612209,0.23310655,57924.0,57923.0,0.36751695]
[1617937612409,1.23310655,57924.0,57923.0,0.36751695]
[1617937616811,0.23310655,57924.0,57923.0,0.49804695]
[1617937617012,0.10725655,57924.0,57923.0,0.49804695]
[1617937617440,1.10725655,57924.0,57923.0,0.49804695]
[1617937617712,0.10725655,57924.0,57923.0,0.55966207]
[1617937619613,0.10725655,57924.0,57923.0,0.42913207]
[1617937620314,0.10725655,57924.0,57923.0,3.68333207]
[1617937620617,0.10725655,57924.0,57923.0,0.36751695]
[1617937620818,0.10725655,57924.0,57923.0,0.42913009]
[1617937621015,2.65455655,57924.0,57923.0,0.42913009]
[1617937621216,2.65455655,57924.0,57923.0,0.36751695]
[1617937624122,2.65455655,57924.0,57923.0,0.81632978]
[1617937625521,2.65455655,57924.0,57923.0,0.36751695]
[1617937625722,2.65455655,57924.0,57923.0,0.4291307]
[1617937626322,2.65455655,57924.0,57923.0,0.36751695]
[1617937626823,2.65455655,57924.0,57923.0,0.42913073]
[1617937627023,2.65455655,57924.0,57923.0,0.36751695]
[1617937628025,2.65455655,57924.0,57923.0,0.67363367]
[1617937631226,3.65455655,57924.0,57923.0,0.67363367]
[1617937632527,3.65455655,57924.0,57923.0,0.30611672]
[1617937632927,3.65455655,57924.0,57923.0,0.67412807]
[1617937636430,3.65455655,57924.0,57923.0,0.82061807]
[1617937637036,3.65455655,57924.0,57923.0,1.33205417]
[1617937637332,0.10725655,57924.0,57923.0,4.10695417]
[1617937637735,0.10725655,57924.0,57923.0,4.19938332]
[1617937645742,0.10725655,57924.0,57923.0,1.42448332]
[1617937646141,3.71115655,57924.0,57923.0,1.42448332]
[1617937646641,3.71115655,57924.0,57923.0,1.33205417]
[1617937650246,3.71115655,57924.0,57923.0,1.84403643]
[1617937655355,4.01394866,57924.0,57923.0,1.84403643]
[1617937656355,4.01394866,57924.0,57923.0,1.69754643]
[1617937657156,4.37701916,57924.0,57923.0,1.12394448]
[1617937657555,4.01394866,57924.0,57922.0,0.51306827]
[1617937657857,4.71115655,57924.0,57911.0,3.3013]
[1617937658258,1.0,57921.0,57914.0,0.57464381]
[1617937658458,1.0,57920.0,57914.0,0.57464381]
[1617937658656,1.30272792,57920.0,57913.0,0.57464637]
[1617937658957,1.0,57919.0,57913.0,0.57464637]
[1617937659758,1.0,57919.0,57918.0,1.64184977]
[1617937661576,1.30265975,57919.0,57918.0,1.64184977]
[1617937662060,1.10725655,57919.0,57918.0,1.64184977]
[1617937662501,0.10725655,57919.0,57918.0,1.64184977]
[1617937662661,0.10725655,57919.0,57918.0,1.79743977]
[1617937662863,0.10725655,57919.0,57918.0,4.74743977]
[1617937663298,0.10725655,57919.0,57918.0,4.90149644]
[1617937667569,0.10725655,57919.0,57918.0,3.10559]
[1617937668171,0.10725655,57919.0,57918.0,4.74742019]
[1617937669069,0.10725655,57919.0,57918.0,4.83985328]
[1617937672171,0.10725655,57919.0,57918.0,5.41448651]
[1617937673174,0.10725655,57919.0,57918.0,3.77265632]
[1617937673376,0.10725655,57919.0,57918.0,4.98361839]
[1617937673774,0.10725655,57919.0,57918.0,5.41447309]
[1617937674174,0.10725655,57919.0,57918.0,3.77266143]
[1617937674374,0.10725655,57919.0,57918.0,5.55826081]
[1617937674678,0.10725655,57919.0,57918.0,5.32204575]
[1617937675076,0.10725655,57919.0,57918.0,5.4144769]
[1617937677582,0.10725655,57919.0,57918.0,4.83983856]
[1617937681387,0.10725655,57919.0,57918.0,5.41445412]
[1617937690800,0.10725655,57919.0,57918.0,5.61445412]
[1617937693003,0.30337412,57928.0,57918.0,5.61445412]
[1617937693203,0.30337412,57928.0,57918.0,2.80822552]
[1617937693403,0.30337412,57928.0,57927.0,3.4718]
[1617937693704,0.30352415,57931.0,57927.0,5.11322661]
[1617937694003,0.10725655,57928.0,57927.0,5.26726501]
[1617937694605,0.10725655,57928.0,57927.0,5.84172925]
[1617937694804,0.10725655,57928.0,57927.0,6.04172925]
[1617937695407,0.10725655,57928.0,57927.0,5.46726501]
[1617937695606,0.10725655,57928.0,57927.0,5.26726501]
[1617937698018,0.10725655,57935.0,57927.0,5.37452156]
[1617937698516,0.10725655,57935.0,57934.0,1.12629318]
[1617937698715,0.10725655,57935.0,57934.0,1.22501318]
[1617937699415,0.10725655,57935.0,57934.0,1.28662315]
[1617937699826,0.10725655,57935.0,57934.0,1.79857449]
[1617937700863,0.10725655,57935.0,57934.0,1.28662315]
[1617937701341,0.10725655,57935.0,57934.0,1.7983721]
[1617937709732,0.10725655,57935.0,57934.0,4.3254721]
[1617937710229,0.10725655,57935.0,57934.0,4.41787217]
[1617937710631,0.30308656,57947.0,57934.0,1.89077217]
[1617937710867,0.30308656,57947.0,57934.0,2.89077217]
[1617937711134,0.30327158,57950.0,57946.0,4.05321129]
[1617937711330,0.30327158,57950.0,57946.0,4.15578129]
[1617937711532,0.30331128,57951.0,57949.0,0.67470049]
[1617937711732,0.30331128,57951.0,57950.0,3.2289]
[1617937711933,0.44480937,57958.0,57950.0,3.90326842]
[1617937711934,0.30335827,57955.0,57950.0,3.90326842]
[1617937712234,0.10725655,57951.0,57950.0,3.90326842]
[1617937712433,0.10725655,57951.0,57950.0,3.2289]
[1617937712832,0.10725655,57951.0,57950.0,4.35281144]
[1617937717737,0.10725655,57951.0,57950.0,3.90324686]
[1617937722844,0.10725655,57951.0,57950.0,4.35234154]
[1617937727351,0.10725655,57951.0,57950.0,4.35161173]
[1617937730054,0.30333592,57963.0,57950.0,4.35161173]
[1617937730257,0.10725655,57961.0,57950.0,4.35161173]
[1617937730657,0.10725655,57961.0,57960.0,0.30605581]
[1617937730856,0.10725655,57961.0,57960.0,0.41875581]
[1617937733959,0.41106112,57961.0,57960.0,0.78663536]
[1617937737277,0.41106112,57961.0,57960.0,0.41875581]
[1617937739864,0.10725655,57961.0,57960.0,0.78660455]
[1617937740665,0.10725655,57961.0,57960.0,0.67390455]
[1617937741065,3.80155655,57961.0,57960.0,0.67390455]
[1617937741266,4.10469253,57961.0,57960.0,0.67390455]
[1617937741868,4.10469253,57961.0,57960.0,0.30605581]
[1617937744168,5.10469253,57961.0,57960.0,0.30605581]
[1617937744569,1.77395137,57961.0,57960.0,0.30605581]
[1617937744969,1.77395137,57961.0,57959.0,0.30656011]
[1617937745569,0.86141722,57960.0,57959.0,0.30656011]
[1617937746168,1.86141722,57960.0,57959.0,0.30656011]
[1617937747869,0.86141722,57960.0,57959.0,0.30656011]
[1617937751482,0.49824615,57960.0,57959.0,0.30656011]
[1617937751979,0.86148112,57960.0,57959.0,0.30656011]
[1617937752480,0.30265937,57960.0,57959.0,0.30656011]
[1617937754682,0.30265937,57960.0,57959.0,0.67458205]
[1617937755485,0.66639411,57960.0,57959.0,0.67458205]
[1617937756085,0.30265937,57960.0,57959.0,0.67458205]
[1617937756884,0.66641117,57960.0,57959.0,0.67458205]
[1617937757283,0.66641117,57960.0,57959.0,0.73617143]
[1617937757786,0.4985585,57960.0,57959.0,0.67458205]
[1617937758387,0.86230058,57960.0,57959.0,0.67458205]
[1617937762199,0.86230058,57960.0,57959.0,0.73617118]
[1617937764196,0.30265937,57960.0,57959.0,1.18654701]
[1617937764598,0.30265937,57960.0,57959.0,0.73617118]
[1617937765898,0.30265937,57960.0,57959.0,1.18654621]
[1617937766599,0.66731272,57960.0,57959.0,1.18654621]
[1617937767599,3.64331272,57960.0,57959.0,1.18654621]
[1617937767899,3.83966658,57960.0,57959.0,1.18654621]
[1617937768100,3.83966658,57960.0,57959.0,1.12495708]
[1617937769102,3.83966658,57960.0,57959.0,1.18654506]
[1617937769502,3.83966658,57960.0,57959.0,1.12495708]
[1617937780521,0.86366658,57960.0,57959.0,1.12495708]
[1617937791332,0.86366658,57960.0,57959.0,1.18654404]
[1617937791732,0.86366658,57960.0,57959.0,1.12495708]
[1617937794035,0.86366658,57960.0,57959.0,1.1865443]
[1617937794736,0.86366658,57960.0,57959.0,1.12495708]
[1617937808155,0.86366658,57960.0,57959.0,1.63794005]
[1617937808657,0.86366658,57960.0,57959.0,1.12495708]
[1617937809755,0.86366658,57960.0,57959.0,1.63794039]
[1617937810155,0.86366658,57960.0,57959.0,1.12495708]
[1617937810556,0.86366658,57960.0,57959.0,1.69952939]
[1617937810957,0.86366658,57960.0,57959.0,1.12495708]
[1617937811456,0.86366658,57960.0,57959.0,1.63795919]
[1617937816964,0.30265937,57960.0,57959.0,1.63795919]
[1617937817865,0.30536186,57961.0,57959.0,4.16215919]
[1617937818365,0.30536186,57961.0,57960.0,1.79538663]
[1617937818565,0.30536186,57961.0,57960.0,6.50496663]
[1617937818766,0.3055257,57964.0,57960.0,7.22313048]
[1617937818965,0.3055257,57964.0,57963.0,0.10725655]
[1617937819166,0.30552959,57965.0,57963.0,2.748414]
[1617937819566,0.3056728,57968.0,57964.0,2.2770268]
[1617937819865,0.3056728,57968.0,57964.0,3.2770268]
[1617937820064,0.3056728,57968.0,57967.0,1.0]
[1617937820367,0.41308705,57970.0,57967.0,3.21563302]
[1617937820566,0.10725655,57970.0,57967.0,3.21563302]
[1617937820764,0.30584644,57971.0,57967.0,3.21563302]
[1617937820966,0.30584644,57971.0,57970.0,0.10725655]
[1617937821167,0.3669713,57973.0,57970.0,0.10725655]
[1617937821567,0.30582624,57971.0,57970.0,1.81004608]
[1617937821979,0.30582624,57971.0,57970.0,0.16882396]
[1617937822382,0.30582624,57971.0,57970.0,1.81004526]
[1617937822569,0.30582624,57971.0,57970.0,5.47014526]
[1617937822973,0.30495712,57978.0,57970.0,5.47014526]
[1617937823372,0.3050304,57977.0,57970.0,5.56249431]
[1617937823771,0.30508366,57976.0,57975.0,0.44985618]
[1617937824172,0.30513856,57977.0,57975.0,1.12463759]
[1617937824574,0.30513856,57977.0,57973.0,0.11051]
[1617937824575,0.30513856,57977.0,57976.0,1.12463758]
[1617937825175,0.30513856,57977.0,57976.0,0.67478255]
[1617937825375,0.30513856,57977.0,57976.0,0.73634832]
[1617937825874,0.30526936,57978.0,57976.0,1.12463681]
[1617937826274,0.35696936,57978.0,57977.0,0.67478549]
[1617937826476,0.30526936,57978.0,57977.0,0.67478549]
[1617937827278,0.30526936,57978.0,57977.0,3.99564172]
[1617937827879,0.30526936,57978.0,57977.0,1.12464172]
[1617937828080,0.30526936,57978.0,57977.0,1.27855606]
[1617937828283,0.30526936,57978.0,57977.0,4.93785606]
[1617937828484,0.30526936,57978.0,57977.0,4.78394172]
[1617937828886,0.30526936,57978.0,57977.0,4.39565163]
[1617937830188,1.30526936,57978.0,57977.0,4.39565163]
[1617937830887,1.30526936,57978.0,57977.0,0.73635163]
[1617937831087,3.99576936,57978.0,57977.0,0.73635163]
[1617937831490,4.50065418,57978.0,57977.0,0.30672068]
[1617937832789,1.81015418,57978.0,57977.0,0.30672068]
[1617937832991,2.25718668,57978.0,57976.0,0.3066533]
[1617937833390,1.30541292,57977.0,57974.0,0.3066517]
[1617937833889,0.67062511,57975.0,57972.0,2.86864345]
[1617937834289,0.67062511,57975.0,57973.0,0.36803767]
[1617937834793,0.18806228,57976.0,57974.0,0.30669896]
[1617937835203,0.10725655,57975.0,57974.0,0.30669896]
[1617937835414,0.77909122,57975.0,57974.0,0.36803674]
[1617937835803,0.77909122,57975.0,57974.0,0.7363023]
[1617937835991,0.47370257,57975.0,57974.0,0.7363023]
[1617937836192,0.96813656,57975.0,57974.0,0.67473245]
[1617937836896,0.96813656,57975.0,57973.0,0.06156985]
[1617937837094,0.96813656,57975.0,57974.0,0.73629978]
[1617937837495,0.47370257,57975.0,57974.0,0.73629978]
[1617937837896,0.77974112,57975.0,57974.0,0.67472999]
[1617937838897,0.9685739,57975.0,57973.0,0.06156988]
[1617937839197,0.77974112,57975.0,57974.0,0.73630075]
[1617937839598,0.96856632,57975.0,57974.0,0.67473087]
[1617937841900,0.4132951,57975.0,57974.0,0.67473087]
[1617937844305,0.4132951,57975.0,57974.0,0.73629849]
[1617937845808,0.10725655,57975.0,57974.0,0.67473087]
[1617937846607,0.10725655,57975.0,57974.0,1.1243695]
[1617937848311,3.22235655,57975.0,57974.0,1.1243695]
[1617937848611,3.22235655,57975.0,57974.0,0.67473087]
[1617937848810,3.22235655,57975.0,57974.0,1.12424346]
[1617937849010,3.22235655,57975.0,57974.0,1.18580997]
[1617937849310,3.22235655,57975.0,57974.0,0.81767247]
[1617937849711,3.22235655,57975.0,57974.0,1.12424319]
[1617937850011,0.10725655,57975.0,57974.0,1.12424319]
[1617937850211,0.10725655,57975.0,57974.0,3.60824319]
[1617937850410,0.10725655,57975.0,57974.0,3.30167247]
[1617937850612,0.10725655,57975.0,57974.0,3.76215907]
[1617937851314,0.10725655,57975.0,57974.0,3.89149907]
[1617937868848,3.4365,57977.0,57974.0,3.89149907]
[1617937869049,0.30673864,57980.0,57974.0,1.40749907]
[1617937869450,0.30673864,57980.0,57979.0,2.9764]
[1617937869650,0.30673864,57980.0,57979.0,3.6491978]
[1617937869851,0.41399519,57980.0,57979.0,3.6491978]
[1617937870051,0.41399519,57980.0,57979.0,3.71076173]
[1617937870552,0.10725655,57980.0,57979.0,4.15914687]
[1617937871754,0.51111538,57997.0,57979.0,4.15914687]
[1617937871755,0.30684418,57986.0,57984.0,0.10725655]
[1617937871954,0.30684418,57986.0,57985.0,2.6673]
[1617937872255,0.30684624,57988.0,57984.0,0.10725655]
[1617937872454,0.30684624,57988.0,57987.0,2.668]
[1617937872655,0.30684624,57988.0,57987.0,2.76436]
[1617937873057,0.3068465,57989.0,57987.0,4.03819071]
[1617937873557,0.30684452,57988.0,57987.0,2.76436]
[1617937874057,0.30684452,57988.0,57987.0,3.8843686]
[1617937874458,0.30608343,57988.0,57987.0,3.8843686]
[1617937881272,0.10725655,57991.0,57987.0,3.8843686]
[1617937881673,0.10725655,57991.0,57990.0,0.36662144]
[1617937888682,0.10725655,57991.0,57987.0,0.09636]
[1617937888883,0.10725655,57991.0,57990.0,0.36618339]
[1617937889085,0.10725655,57991.0,57990.0,0.49775339]
[1617937889686,0.10725655,57991.0,57990.0,0.5593123]
[1617937893888,0.10725655,57991.0,57990.0,1.00692447]
[1617937894290,0.10725655,57991.0,57990.0,0.94536556]
[1617937894687,0.10725655,57991.0,57990.0,1.00691679]
[1617937896087,0.10725655,57991.0,57990.0,4.58161679]
[1617937896891,0.10725655,57991.0,57990.0,4.13361918]
[1617937898591,0.10725655,57991.0,57990.0,4.58114644]
[1617937899791,0.10725655,57991.0,57990.0,4.13361918]
[1617937901894,0.10725655,57991.0,57990.0,0.55891918]
[1617937903395,0.10725655,57991.0,57990.0,1.00645848]
[1617937904896,0.10725655,57991.0,57990.0,1.31161985]
[1617937905398,0.41413224,57991.0,57990.0,1.31161985]
[1617937905797,0.41413224,57991.0,57990.0,4.36831985]
[1617937906197,0.41413224,57991.0,57990.0,4.46064767]
[1617937907700,0.30687569,57991.0,57990.0,4.46064767]
[1617937907899,0.30687569,57991.0,57990.0,4.56790422]
[1617937909302,0.30687069,57992.0,57990.0,4.56790422]
[1617937909703,0.30687069,57992.0,57991.0,0.90698591]
[1617937912407,3.50717069,57992.0,57991.0,0.90698591]
[1617937912606,3.50717069,57992.0,57991.0,0.81465969]
[1617937913206,0.30687069,57992.0,57991.0,0.81465969]
[1617937913809,3.54057069,57992.0,57991.0,0.81465969]
[1617937914307,3.73443759,57992.0,57991.0,0.36686522]
[1617937914507,0.50073759,57992.0,57991.0,0.36686522]
[1617937914709,0.50073759,57992.0,57991.0,3.01396522]
[1617937915109,0.30687069,57992.0,57991.0,3.55412427]
[1617937919612,0.50109161,57992.0,57991.0,3.55412427]
[1617937920011,0.30687069,57992.0,57991.0,3.55412427]
[1617937922112,3.3141,58000.0,57991.0,2.6471]
[1617937922414,3.3141,58000.0,57999.0,0.11131152]
[1617937922912,4.64650439,58000.0,57999.0,0.11131152]
[1617937923112,5.64650439,58000.0,57999.0,0.11131152]
[1617937924139,5.84650439,58000.0,57999.0,0.11131152]
[1617937924518,5.84650439,58000.0,57994.0,0.36746148]
[1617937924716,5.95422439,58000.0,57994.0,0.36746148]
[1617937924920,1.3324576,57995.0,57993.0,0.36755024]
[1617937925619,0.45099026,57994.0,57992.0,0.36760281]
[1617937925820,1.33247588,57994.0,57992.0,0.36760281]
[1617937926019,0.10725655,57993.0,57992.0,0.36760281]
[1617937926219,2.43973545,57993.0,57991.0,0.36750042]
[1617937926619,1.33247888,57992.0,57991.0,0.36750042]
[1617937927220,0.82000278,57992.0,57990.0,0.36718295]
[1617937928020,0.36878133,57991.0,57990.0,0.36718295]
[1617937928220,0.81949131,57991.0,57990.0,0.36718295]
[1617937929022,1.81949131,57991.0,57990.0,0.36718295]
[1617937929221,0.81949131,57991.0,57990.0,0.36718295]
[1617937933825,1.81949131,57991.0,57990.0,0.36718295]
[1617937934225,0.81949131,57991.0,57990.0,0.36718295]
[1617937934825,1.81949131,57991.0,57990.0,0.36718295]
[1617937935928,0.81949131,57991.0,57990.0,0.36718295]
[1617937937528,3.784,57992.0,57990.0,0.36718295]
[1617937937729,0.81939732,57991.0,57990.0,0.36718295]
[1617937945832,0.81939732,57991.0,57990.0,3.36618295]
[1617937946433,0.36873903,57991.0,57990.0,3.42773423]
[1617937947735,0.36873903,57991.0,57990.0,3.87193435]
[1617937951237,0.36873903,57991.0,57990.0,3.99767435]
[1617937952743,0.67603678,57991.0,57990.0,4.29996389]
[1617937953247,0.30729775,57991.0,57990.0,4.29996389]
[1617937953655,0.88730227,57991.0,57990.0,4.29996389]
[1617937954142,0.67598982,57991.0,57990.0,4.29996389]
[1617937954346,0.5186103,57991.0,57990.0,4.29996389]
[1617937954843,0.30729775,57991.0,57990.0,4.29996389]
[1617937960249,0.30729775,57991.0,57990.0,4.40722044]
[1617937964957,0.30729775,57991.0,57990.0,1.40822044]
[1617937965558,3.63979775,57991.0,57990.0,1.40822044]
[1617937965857,3.63979775,57991.0,57990.0,1.28248044]
[1617937966159,0.30729775,57991.0,57990.0,1.28248044]
[1617937966358,0.30729775,57991.0,57990.0,1.38172044]
[1617937966560,0.30729775,57991.0,57990.0,4.39652044]
[1617937967360,0.30729775,57991.0,57990.0,4.488831]
[1617937975273,0.30707808,57992.0,57990.0,4.488831]
[1617937975473,0.30707808,57992.0,57990.0,1.474031]
[1617937975872,0.30707808,57992.0,57991.0,3.0602]
[1617937976073,0.30707808,57992.0,57991.0,4.22789121]
[1617937976373,0.30707808,57992.0,57991.0,4.32020208]
[1617937986990,0.30707808,57992.0,57991.0,1.26000208]
[1617937987192,3.63057808,57992.0,57991.0,1.26000208]
[1617937987794,3.63057808,57992.0,57991.0,1.16769121]
[1617937993098,4.63057808,57992.0,57991.0,1.16769121]
[1617937993501,4.63057808,57992.0,57991.0,0.66369036]
[1617937993502,5.45011426,57992.0,57991.0,0.66369036]
[1617937995103,5.45011426,57992.0,57991.0,0.71733767]
[1617937995704,4.45011426,57992.0,57991.0,0.65579036]
[1617937996224,4.45011426,57992.0,57991.0,0.71733777]
[1617937996422,4.45011426,57992.0,57991.0,0.65579036]
[1617937996804,5.45011426,57992.0,57991.0,0.65579036]
[1617937998403,5.55737081,57992.0,57991.0,0.65579036]
[1617937999808,2.23387081,57992.0,57991.0,0.65579036]
[1617938000406,2.23387081,57992.0,57991.0,3.61239036]
[1617938001010,2.57222009,57992.0,57991.0,3.6739377]
[1617938002110,1.57222009,57992.0,57991.0,3.6739377]
[1617938020628,1.23387081,57992.0,57991.0,3.6739377]
[1617938020931,1.45645301,57992.0,57991.0,3.6739377]
[1617938022630,4.18985301,57992.0,57991.0,3.6739377]